bitfinex/quotes_SOLUSD_20250930
["timestamp","ask_amount","ask_price","bid_price","bid_amount"]
[1759251431083,23.46729495,205.12,205.09,0.66000001]
[1759251431382,28.3426125,205.12,205.09,0.66000001]
[1759251431582,20.8,205.12,205.09,0.66000001]
[1759251431756,2.66729495,205.11,205.09,1e-08]
[1759251433285,7.54273538,205.11,205.09,1e-08]
[1759251433457,2.66729495,205.1,205.09,1e-08]
[1759251435153,7.54296535,205.1,205.09,1e-08]
[1759251436553,4.8756704,205.1,205.09,1e-08]
[1759251437064,2.66729495,205.17,205.09,0.66000001]
[1759251437367,4.87404129,205.17,205.1,4.8756704]
[1759251437563,1.17861526,205.16,205.09,0.72000001]
[1759251437752,0.69,205.16,205.09,5.59579723]
[1759251437952,0.69,205.16,205.1,0.72]
[1759251439180,5.56445788,205.16,205.1,5.5956549]
[1759251440575,20.8,205.14,205.1,4.8756549]
[1759251440756,20.8,205.14,205.11,0.72]
[1759251441080,20.8,205.14,205.09,4.8757019]
[1759251441081,20.8,205.14,205.09,5.5957019]
[1759251441274,25.67452782,205.15,205.1,0.72]
[1759251441475,20.8,205.14,205.11,0.72]
[1759251441672,20.8,205.14,205.09,1e-08]
[1759251441861,20.8,205.14,205.11,0.72]
[1759251443483,4.874571,205.15,205.11,0.69]
[1759251444568,5.564571,205.15,205.11,0.69]
[1759251445462,5.564571,205.15,205.1,4.8756071]
[1759251445663,5.564571,205.15,205.1,5.5656071]
[1759251446479,0.69,205.15,205.09,1e-08]
[1759251446657,20.8,205.16,205.11,0.69]
[1759251446860,0.69,205.15,205.11,0.69]
[1759251447180,23.46729495,205.13,205.09,1e-08]
[1759251447480,2.66729495,205.12,205.09,1e-08]
[1759251447674,3.35729495,205.12,205.09,1e-08]
[1759251447879,0.69,205.11,205.09,1e-08]
[1759251448465,0.69,205.1,205.09,1e-08]
[1759251448876,1.17861526,205.1,205.09,1e-08]
[1759251449185,0.69,205.1,205.09,1e-08]
[1759251449964,5.36383578,205.12,205.09,1e-08]
[1759251450262,21.49,205.13,205.09,1e-08]
[1759251450467,0.69,205.12,205.09,1e-08]
[1759251450673,5.5653156,205.12,205.09,1e-08]
[1759251451683,20.8,205.13,205.09,0.69000001]
[1759251452288,21.49,205.13,205.09,0.69000001]
[1759251452669,20.8,205.14,205.09,5.5657621]
[1759251452868,21.49,205.14,205.09,5.5657621]
[1759251453686,0.69,205.14,205.09,5.5657621]
[1759251453879,5.3628619,205.16,205.1,0.69]
[1759251454184,6.0528619,205.16,205.1,0.69]
[1759251454493,0.48861526,205.17,205.1,0.69]
[1759251454792,6.05262228,205.17,205.11,4.87543269]
[1759251454985,5.56400702,205.17,205.12,35.55]
[1759251455172,4.87400702,205.17,205.12,35.55]
[1759251455492,0.69,205.16,205.12,34.86]
[1759251456392,5.5642468,205.16,205.12,34.86]
[1759251457286,20.8,205.18,205.12,34.86]
[1759251457287,3.15591021,205.18,205.12,35.55]
[1759251457477,0.69,205.16,205.12,35.55]
[1759251458387,8.23161901,205.16,205.12,34.86]
[1759251458583,7.54161901,205.16,205.12,34.86]
[1759251458890,8.23161901,205.16,205.12,34.86]
[1759251459588,0.69,205.15,205.12,34.86]
[1759251459980,7.54161901,205.16,205.12,34.86]
[1759251460187,8.23161901,205.16,205.12,34.86]
[1759251461189,2.66729495,205.13,205.09,1e-08]
[1759251461398,2.66729495,205.11,205.09,1e-08]
[1759251461980,3.35585588,205.11,205.09,1e-08]
[1759251462986,5.56552403,205.11,205.09,1e-08]
[1759251463296,4.87552403,205.11,205.09,1e-08]
[1759251463795,5.56552403,205.11,205.09,1e-08]
[1759251464187,4.87552403,205.11,205.09,1e-08]
[1759251464382,4.87522497,205.12,205.09,1e-08]
[1759251464794,5.56522497,205.12,205.09,1e-08]
[1759251465398,20.8,205.14,205.11,2.66585588]
[1759251465600,20.8,205.14,205.1,3.35585588]
[1759251466092,4.87353184,205.19,205.13,2.66585588]
[1759251466408,4.87353184,205.19,205.15,2.66585588]
[1759251466575,23.46585588,205.21,205.15,2.66585588]
[1759251466770,0.69,205.19,205.15,2.66585588]
[1759251466974,0.69,205.19,205.16,2.66585588]
[1759251467204,8.02762147,205.21,205.15,3.35585588]
[1759251467504,0.69,205.19,205.15,2.66585588]
[1759251467703,21.49,205.19,205.15,2.66585588]
[1759251468000,0.69,205.19,205.15,2.66585588]
[1759251468306,21.49,205.19,205.17,2.66585588]
[1759251470292,21.49,205.19,205.16,2.66585588]
[1759251470801,26.3637273,205.19,205.16,2.66585588]
[1759251470978,26.3637273,205.19,205.15,0.69]
[1759251471174,26.3637273,205.19,205.16,2.66585588]
[1759251472300,26.3637273,205.19,205.16,1.70448673]
[1759251473096,26.3637273,205.19,205.14,35.55]
[1759251473310,26.3637273,205.19,205.16,1.70448673]
[1759251473476,26.3637273,205.19,205.14,35.55]
[1759251473477,26.3637273,205.19,205.15,1.70448673]
[1759251473879,25.6737273,205.19,205.14,35.55]
[1759251474112,0.72,205.18,205.15,1.70448673]
[1759251474286,2.42448673,205.17,205.11,1.70448673]
[1759251474611,0.72,205.16,205.12,34.84]
[1759251474798,0.72,205.15,205.12,34.84]
[1759251475782,0.72,205.15,205.12,36.54448673]
[1759251475999,0.72,205.17,205.13,1.70448673]
[1759251476197,0.72,205.17,205.14,1.70448673]
[1759251477198,26.39334811,205.2,205.16,1.70448673]
[1759251477402,20.8,205.18,205.17,34.84]
[1759251478296,0.72,205.19,205.17,34.84]
[1759251478697,5.59362332,205.19,205.17,34.84]
[1759251478895,0.72,205.18,205.17,34.84]
[1759251479093,4.87362332,205.19,205.17,34.84]
[1759251479487,5.59362332,205.19,205.17,34.84]
[1759251480205,0.72,205.19,205.17,34.84]
[1759251480400,4.87330992,205.2,205.17,34.84]
[1759251480598,0.72,205.19,205.17,34.84]
[1759251481592,20.8,205.18,205.17,34.84]
[1759251484207,25.67376937,205.18,205.17,34.84]
[1759251484410,28.09833397,205.18,205.09,21.70000001]
[1759251484589,2.4245646,205.17,205.1,35.51]
[1759251484790,0.72,205.17,205.11,0.67]
[1759251485513,5.59414362,205.17,205.11,5.54522485]
[1759251486817,5.59414362,205.17,205.11,0.67]
[1759251487024,5.59414362,205.17,205.11,5.54538292]
[1759251487510,5.59414362,205.17,205.12,0.67]
[1759251487710,4.87414362,205.17,205.12,5.54508905]
[1759251487918,0.72,205.16,205.12,0.67]
[1759251488295,0.72,205.15,205.09,1e-08]
[1759251488613,0.72,205.15,205.1,34.84]
[1759251488808,1.7045646,205.13,205.1,34.84]
[1759251489011,0.72,205.12,205.1,34.84]
[1759251489404,2.4245646,205.11,205.1,34.84]
[1759251489602,7.29999729,205.11,205.1,34.84]
[1759251490418,5.59543269,205.11,205.1,34.84]
[1759251490597,20.8,205.11,205.1,34.84]
[1759251492303,0.72,205.11,205.1,34.84]
[1759251493623,5.59543269,205.11,205.1,34.84]
[1759251494207,7.29999729,205.11,205.1,34.84]
[1759251494616,5.59543269,205.11,205.1,34.84]
[1759251495625,4.87543269,205.11,205.1,34.84]
[1759251495807,25.67543269,205.11,205.1,34.84]
[1759251496008,26.39543269,205.11,205.1,34.84]
[1759251499934,20.8,205.11,205.1,34.84]
[1759251500112,12.90739336,205.13,205.1,34.84]
[1759251500113,0.48861526,205.16,205.1,35.53]
[1759251500313,4.87434886,205.16,205.11,0.69]
[1759251500623,4.87434886,205.16,205.12,0.69]
[1759251500804,6.08265418,205.17,205.13,0.69]
[1759251501004,6.08265418,205.17,205.14,34.84]
[1759251501337,0.72,205.16,205.14,34.84]
[1759251501822,7.29903977,205.16,205.14,34.84]
[1759251503422,2.85317986,205.15,205.09,1e-08]
[1759251503626,1.7045646,205.1,205.09,1e-08]
[1759251503816,6.580235,205.1,205.09,1e-08]
[1759251504420,2.19317986,205.11,205.09,1e-08]
[1759251504618,4.87552185,205.11,205.09,1e-08]
[1759251504831,5.36413711,205.11,205.09,1e-08]
[1759251505327,6.02413711,205.11,205.09,1e-08]
[1759251507528,5.36413711,205.11,205.09,1e-08]
[1759251507727,0.66,205.1,205.09,1e-08]
[1759251509112,5.5356704,205.1,205.09,1e-08]
[1759251509739,7.240235,205.1,205.09,1e-08]
[1759251510424,0.66,205.1,205.09,1e-08]
[1759251510632,0.48861526,205.11,205.09,1e-08]
[1759251510817,4.8756704,205.1,205.09,1e-08]
[1759251511729,20.83582901,205.1,205.09,1e-08]
[1759251512046,33.02500502,205.1,205.01,34.82]
[1759251512338,1.7045646,205.04,205.01,34.82]
[1759251512719,0.66,205.06,205.01,34.82]
[1759251512921,1.7045646,205.04,205.01,34.82]
[1759251513632,6.58170593,205.04,205.01,34.82]
[1759251513831,6.58170593,205.04,205.01,35.54]
[1759251514838,1.7045646,205.02,204.99,0.2]
[1759251515017,1.7045646,205.0,204.99,0.2]
[1759251515218,2.3645646,205.0,204.99,0.2]
[1759251515423,0.66,205.0,204.99,0.2]
[1759251515630,7.24261338,205.0,204.99,0.2]
[1759251515945,9.1969312,205.0,204.99,0.2]
[1759251517125,7.4923666,205.0,204.99,0.2]
[1759251517334,9.1969312,205.0,204.99,0.2]
[1759251517833,22.75431782,205.0,204.99,0.2]
[1759251518138,2.85317986,205.05,204.99,0.92]
[1759251518441,1.7045646,205.04,204.99,0.92]
[1759251518654,20.8,205.02,204.99,0.92]
[1759251519822,1.7045646,205.03,204.99,0.92]
[1759251520029,7.7303582,205.04,204.99,0.92]
[1759251520635,1.7045646,205.03,204.99,0.92]
[1759251521539,4.87757291,205.02,204.99,0.92]
[1759251521835,2.3645646,205.01,204.99,0.2]
[1759251522425,1.7045646,205.01,204.99,0.2]
[1759251522741,0.66,205.01,204.99,0.2]
[1759251522926,2.3645646,205.01,204.99,0.2]
[1759251523237,0.66,205.01,204.99,0.2]
[1759251523441,2.3645646,205.01,204.99,0.2]
[1759251523942,7.2424758,205.01,204.99,0.2]
[1759251524718,6.5824758,205.01,204.99,0.2]
[1759251525240,7.2424758,205.01,204.99,0.2]
[1759251525624,6.5824758,205.01,204.99,0.2]
[1759251526053,7.07055085,205.03,204.99,0.92]
[1759251526230,5.36598625,205.03,204.99,0.2]
[1759251526434,1.7045646,205.01,204.99,0.2]
[1759251526940,2.3645646,205.01,204.99,0.2]
[1759251527243,1.7045646,205.01,204.99,0.2]
[1759251527433,2.3645646,205.01,204.99,0.2]
[1759251527848,6.58250446,205.01,204.99,0.2]
[1759251528349,4.87793986,205.01,204.99,0.2]
[1759251528552,1.7045646,205.02,204.99,0.2]
[1759251528751,2.3645646,205.02,204.99,0.2]
[1759251528935,2.3645646,205.01,204.99,0.2]
[1759251529142,0.66,205.02,204.99,0.2]
[1759251529335,7.07070488,205.03,204.99,0.2]
[1759251529964,7.73070488,205.03,204.99,0.2]
[1759251530437,4.87713906,205.04,205.0,0.72]
[1759251530958,4.87713906,205.04,204.99,0.2]
[1759251530959,7.24170366,205.04,204.99,0.2]
[1759251531625,0.66,205.03,204.99,0.2]
[1759251531929,2.3645646,205.03,204.99,0.2]
[1759251532329,4.87757291,205.02,204.99,0.2]
[1759251532542,5.53757291,205.02,204.99,0.2]
[1759251533548,4.87757291,205.02,204.99,0.2]
[1759251533954,42.19949077,205.1,204.99,0.2]
[1759251533955,4.87638367,205.07,205.0,0.72]
[1759251534457,0.68,205.1,205.01,4.87781083]
[1759251534744,0.68,205.09,205.02,35.54]
[1759251534959,21.48,205.09,205.03,0.72]
[1759251535537,26.35611793,205.09,205.03,5.59727067]
[1759251538264,26.35611793,205.09,205.04,2.66604669]
[1759251538434,0.68,205.08,205.04,2.66604669]
[1759251538636,0.68,205.08,205.04,8.26311174]
[1759251538832,0.48861526,205.13,205.07,2.66604669]
[1759251539056,0.68,205.14,205.09,2.66604669]
[1759251539361,0.68,205.13,205.09,2.66604669]
[1759251540838,0.68,205.13,205.09,7.54192701]
[1759251541248,26.84330471,205.15,205.09,8.26192701]
[1759251541448,0.68,205.14,205.08,39.69611993]
[1759251541633,0.68,205.14,205.09,2.66604669]
[1759251541830,0.68,205.13,205.08,42.36216662]
[1759251542059,0.68,205.13,205.08,43.08216662]
[1759251542556,3.83466195,205.15,205.09,0.72]
[1759251542760,3.34604669,205.15,205.09,3.38604669]
[1759251542969,8.22052911,205.15,205.09,3.38604669]
[1759251543458,0.68,205.15,205.1,2.66604669]
[1759251543664,5.36290129,205.16,205.11,0.72]
[1759251543851,0.68,205.15,205.1,2.66604669]
[1759251544054,0.68,205.14,205.1,2.66604669]
[1759251544256,0.68,205.13,205.08,40.41611993]
[1759251544470,0.68,205.13,205.09,3.38604669]
[1759251544962,23.46604669,205.11,205.1,34.82]
[1759251545148,24.14604669,205.11,205.1,34.82]
[1759251546356,21.48,205.11,205.1,34.82]
[1759251546749,26.35543269,205.11,205.1,34.82]
[1759251547135,29.51009464,205.11,205.1,34.82]
[1759251552065,25.67543269,205.11,205.1,34.82]
[1759251552255,21.28861526,205.13,205.1,34.82]
[1759251552563,2.66604669,205.12,205.1,34.82]
[1759251553164,3.34604669,205.12,205.1,34.82]
[1759251553465,2.66604669,205.12,205.1,34.82]
[1759251553656,26.16360092,205.13,205.1,34.82]
[1759251554371,0.68,205.12,205.1,34.82]
[1759251554541,28.82964761,205.13,205.1,34.82]
[1759251554742,29.50964761,205.13,205.1,34.82]
[1759251555766,2.66604669,205.12,205.1,34.82]
[1759251556059,29.50964761,205.13,205.1,34.82]
[1759251556271,0.48861526,205.16,205.11,0.72]
[1759251556448,0.48861526,205.16,205.12,0.72]
[1759251556449,6.04291302,205.16,205.12,0.72]
[1759251556965,8.70895971,205.16,205.1,35.54]
[1759251558063,20.8,205.13,205.1,40.41565315]
[1759251558271,20.8,205.13,205.1,34.82]
[1759251558583,20.8,205.13,205.1,35.54]
[1759251559066,25.6750204,205.13,205.1,35.54]
[1759251561359,20.8,205.13,205.1,35.54]
[1759251561559,20.8,205.13,205.11,0.72]
[1759251562271,20.8,205.13,205.12,0.72]
[1759251562474,5.36243898,205.18,205.12,8.26124169]
[1759251562672,6.05243898,205.18,205.12,8.26124169]
[1759251563672,0.48861526,205.19,205.13,3.33604669]
[1759251563868,5.36221536,205.19,205.14,34.8]
[1759251564064,5.36221536,205.19,205.14,35.47]
[1759251564573,6.08221536,205.19,205.15,0.67]
[1759251564971,0.48861526,205.19,205.16,0.67]
[1759251565269,5.59237076,205.24,205.18,2.66604669]
[1759251565460,5.59237076,205.24,205.19,35.45]
[1759251565661,5.59237076,205.24,205.19,34.78]
[1759251565856,5.59237076,205.24,205.2,0.67]
[1759251566278,4.87237076,205.24,205.2,0.67]
[1759251566459,4.87211673,205.25,205.2,0.67]
[1759251566664,0.72,205.25,205.21,0.67]
[1759251567179,20.8,205.22,205.21,0.67]
[1759251567964,4.87217509,205.25,205.21,0.67]
[1759251568282,20.8,205.24,205.22,0.67]
[1759251568463,20.8,205.24,205.23,34.78]
[1759251569156,26.88042967,205.27,205.23,35.45]
[1759251569358,0.58861526,205.3,205.24,0.67]
[1759251569618,1.30861526,205.3,205.24,0.67]
[1759251570257,5.69112105,205.3,205.24,0.67]
[1759251570656,0.82,205.3,205.24,0.67]
[1759251571081,0.1,205.3,205.25,4.87210718]
[1759251571376,0.1,205.3,205.26,0.67]
[1759251571577,5.69093296,205.3,205.27,34.78]
[1759251571761,5.69093296,205.3,205.28,34.78]
[1759251572976,0.1,205.3,205.28,34.78]
[1759251573468,0.1,205.3,205.28,35.45]
[1759251573661,0.1,205.3,205.29,0.67]
[1759251574880,0.1,205.3,205.29,5.54115787]
[1759251580186,0.1,205.3,205.29,0.67]
[1759251580388,0.1,205.3,205.28,34.78]
[1759251580575,0.1,205.3,205.28,35.45]
[1759251580988,0.1,205.3,205.29,0.67]
[1759251581187,0.1,205.3,205.29,4.87115787]
[1759251582672,0.1,205.3,205.29,5.54115787]
[1759251583071,0.1,205.31,205.3,13.59559401]
[1759251583279,0.1,205.31,205.3,14.54991715]
[1759251583671,0.1,205.31,205.3,19.42083775]
[1759251589597,0.1,205.31,205.3,54.16083775]
[1759251592770,0.1,205.31,205.3,18.75083775]
[1759251592977,0.1,205.31,205.3,53.47083775]
[1759251593997,0.79,205.31,205.3,53.47083775]
[1759251594583,0.1,205.31,205.3,53.47083775]
[1759251594989,0.79,205.31,205.3,34.72]
[1759251595296,0.79,205.31,205.28,4.8713545]
[1759251595482,0.69,205.3,205.29,34.72]
[1759251597705,0.69,205.3,205.29,39.59115787]
[1759251599099,0.1,205.31,205.29,39.59115787]
[1759251599404,0.79,205.31,205.29,39.59115787]
[1759251599800,0.69,205.3,205.29,39.59115787]
[1759251600413,0.69,205.3,205.29,34.72]
[1759251601519,0.1,205.31,205.29,39.59115473]
[1759251605111,0.69,205.3,205.29,34.72]
[1759251607015,0.69,205.3,205.29,39.59115787]
[1759251607309,0.69,205.3,205.29,34.72]
[1759251607706,0.69,205.3,205.29,39.59115787]
[1759251608210,0.1,205.31,205.29,40.24115787]
[1759251608420,0.1,205.31,205.3,14.52991715]
[1759251608596,1e-08,205.31,205.3,14.52991715]
[1759251609903,1e-08,205.31,205.3,49.22991715]
[1759251610213,1e-08,205.31,205.3,54.10083775]
[1759251610813,1e-08,205.31,205.3,53.45083775]
[1759251611019,0.69000001,205.31,205.3,34.7]
[1759251612587,7.26181422,205.31,205.3,34.7]
[1759251613024,2.39113087,205.31,205.3,34.7]
[1759251613508,23.19113087,205.31,205.3,34.7]
[1759251613890,28.06181422,205.31,205.3,34.7]
[1759251614524,28.55042948,205.31,205.3,34.7]
[1759251614702,28.06181422,205.31,205.3,34.7]
[1759251614902,40.23852261,205.31,205.28,34.7]
[1759251615224,22.50113086,205.29,205.28,34.7]
[1759251615517,23.19113086,205.29,205.28,34.7]
[1759251616294,4.87139516,205.28,205.2,14.3315687]
[1759251616498,4.87139516,205.28,205.17,38.0]
[1759251616499,1.70113086,205.21,205.17,38.0]
[1759251616815,0.48861526,205.27,205.18,35.35]
[1759251617000,0.69,205.28,205.18,35.35]
[1759251617207,2.39113086,205.28,205.19,14.52991715]
[1759251617409,2.39113086,205.28,205.2,0.72]
[1759251617601,2.39113086,205.28,205.21,34.7]
[1759251618005,1.70113086,205.25,205.21,34.7]
[1759251618207,4.87120869,205.29,205.17,42.87394133]
[1759251618208,1.70113086,205.22,205.17,42.87394133]
[1759251618415,2.42113086,205.22,205.18,39.57372689]
[1759251618724,1.70113086,205.2,205.18,34.7]
[1759251618930,0.72,205.19,205.18,34.7]
[1759251619297,1.70113086,205.2,205.18,34.7]
[1759251619601,2.42113086,205.19,205.18,34.7]
[1759251619801,1.70113086,205.19,205.18,34.7]
[1759251620196,1.70113086,205.2,205.18,34.7]
[1759251620614,22.50113086,205.23,205.18,40.29376324]
[1759251620815,20.8,205.23,205.19,0.72]
[1759251621017,21.52,205.23,205.18,51.75818667]
[1759251621519,0.72,205.22,205.18,39.57376324]
[1759251621700,0.72,205.21,205.18,34.7]
[1759251621898,1.70113086,205.22,205.18,34.7]
[1759251622139,2.42113086,205.22,205.18,39.57372877]
[1759251622311,1.70113086,205.24,205.19,0.72]
[1759251622623,2.42113086,205.23,205.18,34.7]
[1759251622920,1.70113086,205.22,205.18,39.57375556]
[1759251623119,2.38113086,205.22,205.18,39.57375556]
[1759251623423,0.68,205.22,205.18,39.57375556]
[1759251623897,2.38113086,205.24,205.18,39.57375556]
[1759251624094,1.70113086,205.23,205.18,39.57375556]
[1759251624294,2.38113086,205.23,205.18,39.57375556]
[1759251624520,2.38113086,205.23,205.18,40.29375556]
[1759251625020,1.70113086,205.23,205.19,0.72]
[1759251625201,1.70113086,205.23,205.19,5.59337211]
[1759251625524,1.70113086,205.24,205.19,5.59337211]
[1759251625703,0.68,205.23,205.19,4.87337211]
[1759251626100,2.38113086,205.23,205.18,34.7]
[1759251626419,2.38113086,205.23,205.18,40.29366684]
[1759251626621,1.70113086,205.24,205.19,0.72]
[1759251626928,1.70113086,205.25,205.2,0.72]
[1759251627112,22.50113086,205.25,205.21,34.7]
[1759251627429,0.68,205.24,205.21,34.7]
[1759251628124,22.50113086,205.25,205.21,34.7]
[1759251628304,23.18113086,205.25,205.21,39.57292174]
[1759251628499,22.50113086,205.25,205.21,39.57292174]
[1759251628725,20.8,205.25,205.21,40.29292174]
[1759251628924,22.50113086,205.28,205.22,0.72]
[1759251629130,20.8,205.27,205.22,0.72]
[1759251629312,20.8,205.27,205.23,4.87258198]
[1759251629514,21.48,205.27,205.24,34.7]
[1759251630327,21.48,205.27,205.24,39.57227134]
[1759251631021,21.48,205.27,205.24,34.7]
[1759251631218,20.8,205.27,205.24,34.7]
[1759251631526,0.68,205.27,205.24,34.7]
[1759251631730,23.18113086,205.27,205.24,34.7]
[1759251632115,21.48,205.27,205.24,34.7]
[1759251632317,23.18113086,205.27,205.24,34.7]
[1759251632522,21.48,205.27,205.24,34.7]
[1759251632722,23.18113086,205.27,205.24,34.7]
[1759251633125,1.70113086,205.29,205.24,40.29225263]
[1759251633330,1e-08,205.31,205.25,0.72]
[1759251633710,20.8,205.3,205.25,0.72]
[1759251633926,21.48,205.3,205.25,0.72]
[1759251634125,1e-08,205.31,205.26,0.72]
[1759251634314,20.80000001,205.31,205.27,34.7]
[1759251634512,20.80000001,205.31,205.28,4.87139516]
[1759251634713,20.80000001,205.31,205.29,0.72]
[1759251634714,1e-08,205.31,205.29,0.72]
[1759251634918,1e-08,205.31,205.3,34.7]
[1759251635231,1e-08,205.31,205.3,48.29559401]
[1759251635433,0.1,205.34,205.31,13.87991715]
[1759251635630,0.1,205.38,205.33,34.53775558]
[1759251635823,0.1,205.38,205.35,0.28432314]
[1759251636019,0.1,205.38,205.36,0.72]
[1759251636426,0.1,205.38,205.36,19.46941461]
[1759251638840,0.1,205.38,205.36,18.74941461]
[1759251639042,0.1,205.38,205.36,19.46941461]
[1759251639429,0.1,205.38,205.36,33.21897294]
[1759251639630,0.1,205.38,205.36,67.89897294]
[1759251640526,0.1,205.38,205.36,68.61897294]
[1759251641131,0.1,205.38,205.36,67.89897294]
[1759251642648,0.1,205.38,205.36,68.61897294]
[1759251645862,0.1,205.38,205.36,67.89897294]
[1759251647355,0.1,205.38,205.36,28.34947548]
[1759251647529,0.78,205.37,205.31,12.89638495]
[1759251647737,0.78,205.37,205.32,48.25559401]
[1759251647937,0.68,205.36,205.32,53.12604014]
[1759251648542,0.68,205.35,205.32,48.25559401]
[1759251648737,0.1,205.37,205.32,48.97559401]
[1759251648943,0.1,205.37,205.33,0.72]
[1759251649147,0.1,205.37,205.34,34.66]
[1759251649648,0.78,205.37,205.34,34.66]
[1759251650045,0.1,205.37,205.35,14.59991715]
[1759251650346,0.1,205.37,205.36,34.66]
[1759251650554,0.1,205.37,205.36,35.38]
[1759251651067,0.1,205.37,205.36,40.24949746]
[1759251651645,0.1,205.37,205.36,54.12941461]
[1759251659931,1e-08,205.37,205.36,54.12941461]
[1759251660131,0.1,205.43,205.42,0.28432314]
[1759251660356,0.1,205.43,205.42,48.53991715]
[1759251660664,0.1,205.43,205.42,49.25991715]
[1759251662156,0.1,205.43,205.42,54.12799231]
[1759251662660,1e-08,205.43,205.42,54.12799231]
[1759251662955,1e-08,205.45,205.44,34.67991715]
[1759251663141,1e-08,205.45,205.44,69.31991715]
[1759251663346,1e-08,205.45,205.44,70.03991715]
[1759251663845,1e-08,205.45,205.44,69.31991715]
[1759251664158,1e-08,205.45,205.44,39.54751839]
[1759251664358,1e-08,205.45,205.44,74.18751839]
[1759251665058,0.71000001,205.45,205.44,74.18751839]
[1759251665257,0.71000001,205.45,205.44,39.54751839]
[1759251665439,0.71000001,205.45,205.44,53.10319525]
[1759251665640,0.71000001,205.45,205.39,12.1715386]
[1759251665955,0.71,205.44,205.4,39.50854917]
[1759251666146,0.71,205.43,205.42,4.86807516]
[1759251666348,0.71,205.43,205.42,39.50807516]
[1759251666856,0.71,205.43,205.42,34.64]
[1759251667261,0.71,205.43,205.38,13.59559401]
[1759251667262,0.71,205.43,205.38,25.76807402]
[1759251667437,0.71,205.42,205.39,39.50878621]
[1759251667634,0.71,205.41,205.39,39.50878621]
[1759251667855,3.36644043,205.4,205.37,4.86906429]
[1759251668060,0.71,205.39,205.38,34.64]
[1759251668756,3.36644043,205.39,205.38,34.64]
[1759251669063,0.71,205.39,205.38,34.64]
[1759251670562,8.23522664,205.39,205.38,34.64]
[1759251671364,8.23522664,205.39,205.38,33.92]
[1759251673163,21.51,205.39,205.38,33.92]
[1759251673369,24.16644043,205.39,205.38,33.92]
[1759251673669,29.03522664,205.39,205.38,33.92]
[1759251674450,29.03522664,205.39,205.38,34.64]
[1759251674651,29.5238419,205.39,205.38,34.64]
[1759251675150,1.19861526,205.39,205.38,34.64]
[1759251675345,3.36644043,205.39,205.38,34.64]
[1759251676067,8.23522664,205.39,205.38,34.64]
[1759251676445,8.23522664,205.39,205.3,14.91845932]
[1759251676446,20.89580742,205.39,205.3,14.91845932]
[1759251676650,2.65644043,205.33,205.31,34.64]
[1759251677052,0.48861526,205.37,205.26,52.86675241]
[1759251677053,3.36644043,205.32,205.26,52.86675241]
[1759251677268,2.65644043,205.28,205.27,34.64]
[1759251677864,2.65644043,205.29,205.27,34.64]
[1759251678169,2.65644043,205.31,205.27,34.64]
[1759251678372,2.65644043,205.32,205.28,0.71]
[1759251678853,2.65644043,205.32,205.27,39.51162926]
[1759251679053,3.36644043,205.32,205.27,40.22162926]
[1759251679365,3.36644043,205.32,205.28,0.71]
[1759251679784,3.36644043,205.32,205.27,39.51162926]
[1759251679785,2.65644043,205.32,205.27,51.69071047]
[1759251680086,3.36644043,205.35,205.29,0.71]
[1759251680386,3.36644043,205.41,205.31,0.28432314]
[1759251680560,2.65644043,205.39,205.33,13.87991715]
[1759251680762,2.65644043,205.38,205.34,34.64]
[1759251681063,3.36644043,205.38,205.34,34.64]
[1759251681385,3.36644043,205.37,205.34,34.64]
[1759251681669,2.65644043,205.35,205.31,4.87065444]